bitfinex-derivatives/quotes_BNBF0:USTF0_20250608
["timestamp","ask_amount","ask_price","bid_price","bid_amount"]
[1749377299032,0.30902826,647.19,646.81,1.54008102]
[1749377299834,0.30902826,647.19,646.79,1.54008102]
[1749377302335,0.30902826,647.19,646.78,1.54008102]
[1749377302842,0.30902826,647.19,646.79,1.54008102]
[1749377303036,0.30902826,647.19,646.78,1.54008102]
[1749377304136,0.30902826,647.19,646.79,1.54008102]
[1749377304636,0.30902826,647.19,646.78,1.54008102]
[1749377307642,0.30902826,647.19,646.75,1.54008102]
[1749377308042,0.30902826,647.19,646.76,1.54008102]
[1749377311343,0.30902826,647.19,646.55,1.54008102]
[1749377311944,0.30902826,647.19,646.52,1.54008102]
[1749377312445,0.30902826,647.19,646.47,1.54008102]
[1749377312938,0.30902826,647.19,646.52,1.54008102]
[1749377313140,0.30902826,647.19,646.54,1.54008102]
[1749377313341,0.30902826,647.19,646.59,1.54008102]
[1749377313541,0.30902826,647.19,646.66,1.54008102]
[1749377314141,0.30902826,647.19,646.67,1.54008102]
[1749377315545,0.30902826,647.19,646.72,1.54008102]
[1749377316145,0.30902826,647.19,646.69,1.54008102]
[1749377319651,0.30902826,647.19,646.62,1.54008102]
[1749377320145,0.30902826,647.19,646.61,1.54008102]
[1749377322252,0.30902826,647.19,646.62,1.54008102]
[1749377322654,0.30902826,647.19,646.61,1.54008102]
[1749377326456,0.30902826,647.19,646.62,1.54008102]
[1749377326958,0.30902826,647.19,646.61,1.54008102]
[1749377328859,0.30902826,647.19,646.58,1.54008102]
[1749377329054,0.30902826,647.19,646.54,1.54008102]
[1749377329253,0.30902826,647.19,646.58,1.54008102]
[1749377329659,0.30902826,647.19,646.6,1.54008102]
[1749377331456,0.30902826,647.19,646.59,1.54008102]
[1749377331954,0.30902826,647.19,646.6,1.54008102]
[1749377332359,0.30902826,647.19,646.59,1.54008102]
[1749377333258,0.30902826,647.19,646.6,1.54008102]
[1749377335559,0.30902826,647.19,646.59,1.54008102]
[1749377335760,0.30902826,647.19,646.6,1.54008102]
[1749377336562,0.30902826,647.19,646.61,1.54008102]
[1749377337358,0.26905414,647.05,646.68,1.54008102]
[1749377338164,0.26905414,647.05,646.67,1.54008102]
[1749377340465,0.26905414,647.05,646.66,1.54008102]
[1749377341166,0.26905414,647.05,646.64,1.54008102]
[1749377341361,0.26905414,647.05,646.65,1.54008102]
[1749377341564,0.26905414,647.05,646.66,1.54008102]
[1749377342261,0.26905414,647.05,646.68,1.54008102]
[1749377343168,0.26905414,647.05,646.69,1.54008102]
[1749377343362,0.26905414,647.05,646.68,1.54008102]
[1749377344664,0.26905414,647.05,646.67,1.54008102]
[1749377347869,0.26905414,647.05,646.68,1.54008102]
[1749377348267,0.26905414,647.05,646.67,1.54008102]
[1749377349067,0.26905414,647.05,646.68,1.54008102]
[1749377349269,0.26905414,647.05,646.65,1.54008102]
[1749377349466,0.26905414,647.05,646.66,1.54008102]
[1749377351069,0.26905414,647.05,646.67,1.54008102]
[1749377351471,0.26905414,647.05,646.68,1.54008102]
[1749377352268,0.26905414,647.05,646.67,1.54008102]
[1749377352968,0.26905414,647.05,646.68,1.54008102]
[1749377353272,0.26905414,647.05,646.69,1.54008102]
[1749377354167,0.26905414,647.05,646.68,1.54008102]
[1749377354370,0.26905414,647.05,646.67,1.54008102]
[1749377354569,0.26905414,647.05,646.69,1.54008102]
[1749377354873,0.26905414,647.05,646.68,1.54008102]
[1749377355068,0.26905414,647.05,646.69,1.54008102]
[1749377355272,0.26905414,647.05,646.7,1.54008102]
[1749377355670,0.26905414,647.05,646.69,1.54008102]
[1749377355872,0.26905414,647.05,646.68,1.54008102]
[1749377357472,0.26905414,647.05,646.66,1.54008102]
[1749377358170,0.26905414,647.05,646.65,1.54008102]
[1749377359172,0.26905414,647.05,646.67,1.54008102]
[1749377360475,0.26905414,647.05,646.66,1.54008102]
[1749377362076,0.26905414,647.05,646.65,1.54008102]
[1749377362274,0.26905414,647.05,646.61,1.54008102]
[1749377365285,0.26905414,647.05,646.47,2.31012154]
[1749377365286,0.26905414,647.05,646.6,1.54008102]
[1749377365480,0.26905414,647.05,646.61,1.54008102]
[1749377366286,0.26905414,647.05,646.58,1.54008102]
[1749377366486,0.26905414,647.05,646.57,1.54008102]
[1749377367183,0.26905414,647.05,646.58,1.54008102]
[1749377368785,0.26905414,647.05,646.57,1.54008102]
[1749377369590,0.26905414,647.05,646.55,1.54008102]
[1749377372190,0.26905414,647.05,646.57,1.54008102]
[1749377374889,0.26905414,647.05,646.58,1.54008102]
[1749377375289,0.26905414,647.05,646.57,1.54008102]
[1749377376094,0.26905414,647.05,646.63,1.54008102]
[1749377378996,0.26905414,647.05,646.65,1.54008102]
[1749377381499,0.26905414,647.05,646.66,1.54008102]
[1749377381694,0.26905414,647.05,646.65,1.54008102]
[1749377381899,0.26905414,647.05,646.64,1.54008102]
[1749377382296,0.26905414,647.05,646.63,1.54008102]
[1749377383001,0.26905414,647.05,646.64,1.54008102]
[1749377385698,0.26905414,647.05,646.65,1.54008102]
[1749377391699,0.26905414,647.05,646.55,1.54008102]
[1749377391904,0.26905414,647.05,646.56,1.54008102]
[1749377392204,0.26905414,647.05,646.54,1.54008102]
[1749377395601,0.26905414,647.05,646.53,1.54008102]
[1749377396401,0.26905414,647.05,646.54,1.54008102]
[1749377399901,0.26905414,647.05,646.53,1.54008102]
[1749377401500,0.26905414,647.05,646.57,1.54008102]
[1749377402206,0.26905414,647.05,646.59,1.54008102]
[1749377403502,0.26905414,647.05,646.6,1.54008102]
[1749377404304,0.26905414,647.05,646.61,1.54008102]
[1749377404509,0.26905414,647.05,646.6,1.54008102]
[1749377405108,0.26905414,647.05,646.61,1.54008102]
[1749377408309,0.26905414,647.05,646.64,1.54008102]
[1749377409815,0.26905414,647.05,646.68,1.54008102]
[1749377411914,0.26905414,647.05,645.95,5.32102317]
[1749377411915,0.26905414,647.05,646.59,1.54008102]
[1749377412317,0.26905414,647.05,646.58,1.54008102]
[1749377412615,0.26905414,647.05,646.59,1.54008102]
[1749377414417,0.26905414,647.05,646.6,1.54008102]
[1749377414617,0.26905414,647.05,646.59,1.54008102]
[1749377415019,0.26905414,647.05,646.6,1.54008102]
[1749377417022,0.26905414,647.05,646.58,1.54008102]
[1749377418522,0.26905414,647.05,646.59,1.54008102]
[1749377418822,0.26905414,647.05,646.58,1.54008102]
[1749377421018,0.26905414,647.05,646.59,1.54008102]
[1749377421222,0.26905414,647.05,646.6,1.54008102]
[1749377421419,0.26905414,647.05,646.59,1.54008102]
[1749377421924,0.26905414,647.05,645.8,0.26905622]
[1749377421925,0.26905414,647.05,646.66,1.54008102]
[1749377422424,0.26905414,647.05,646.64,1.54008102]
[1749377422724,0.26905414,647.05,646.66,1.54008102]
[1749377423524,0.26905414,647.05,646.65,1.54008102]
[1749377426828,0.26905414,647.05,646.67,1.54008102]
[1749377427833,0.26905414,647.05,646.56,1.54008102]
[1749377428132,0.26905414,647.05,646.55,1.54008102]
[1749377428429,0.26905414,647.05,646.56,1.54008102]
[1749377428829,0.26905414,647.05,646.6,1.54008102]
[1749377429026,0.26905414,647.05,646.61,1.54008102]
[1749377429230,0.26905414,647.05,646.59,1.54008102]
[1749377429632,0.26905414,647.05,646.6,1.54008102]
[1749377430233,0.26905414,647.05,646.59,1.54008102]
[1749377431331,0.26905414,647.05,646.58,1.54008102]
[1749377432234,0.26905414,647.05,646.57,1.54008102]
[1749377434334,0.26905414,647.05,646.56,1.54008102]
[1749377436231,0.26905414,647.05,646.55,1.54008102]
[1749377436537,0.26905414,647.05,646.66,1.54008102]
[1749377437640,0.26905414,647.05,646.71,1.54008102]
[1749377437939,0.26905414,647.05,646.74,1.54008102]
[1749377438444,0.26905414,647.05,646.75,1.54008102]
[1749377439542,0.26905414,647.05,646.74,1.54008102]
[1749377440645,0.26905414,647.05,646.75,1.54008102]
[1749377440844,0.26905414,647.05,646.76,1.54008102]
[1749377441243,0.26905414,647.05,646.75,1.54008102]
[1749377442449,0.26905414,647.05,646.76,1.54008102]
[1749377443548,0.26905414,647.05,646.78,1.54008102]
[1749377445149,0.26905414,647.05,646.77,1.54008102]
[1749377447248,0.26905414,647.05,646.71,1.54008102]
[1749377448950,0.26905414,647.05,646.7,1.54008102]
[1749377449349,0.26905414,647.05,646.71,1.54008102]
[1749377451254,0.26905414,647.05,646.7,1.54008102]
[1749377451452,0.26905414,647.05,646.66,1.54008102]
[1749377457262,0.26905414,647.05,646.68,1.54008102]
[1749377457556,0.26905414,647.05,646.63,1.54008102]
[1749377457758,0.26905414,647.05,646.61,1.54008102]
[1749377458259,0.26905414,647.05,646.6,1.54008102]
[1749377458456,0.26905414,647.05,646.59,1.54008102]
[1749377459857,0.26905414,647.05,646.6,1.54008102]
[1749377460059,0.26905414,647.05,646.62,1.54008102]
[1749377460362,0.26905414,647.05,646.6,1.54008102]
[1749377461063,0.26905414,647.05,645.8,0.26905622]
[1749377461064,0.26905414,647.05,646.58,1.54008102]
[1749377461260,0.26905414,647.05,646.56,1.54008102]
[1749377463166,0.26905414,647.05,646.62,1.54008102]
[1749377463364,0.26905414,647.05,646.61,1.54008102]
[1749377465966,0.26905414,647.05,646.64,1.54008102]
[1749377466866,0.26905414,647.05,645.8,0.26905622]
[1749377466867,0.26905414,647.05,646.63,1.54008102]
[1749377467667,0.26905414,647.05,646.64,1.54008102]
[1749377470066,0.26905414,647.05,646.65,1.54008102]
[1749377470264,0.26905414,647.05,646.66,1.54008102]
[1749377470869,0.26905414,647.05,646.68,1.54008102]
[1749377472966,0.26905414,647.05,645.92,5.32102317]
[1749377472967,0.26905414,647.05,646.67,1.54008102]
[1749377473665,0.26905414,647.05,646.62,1.54008102]
[1749377476774,0.26905414,647.05,646.63,1.54008102]
[1749377477671,0.26905414,647.05,646.6,1.54008102]
[1749377479475,0.26905414,647.05,646.61,1.54008102]
[1749377481278,0.26905414,647.05,646.6,1.54008102]
[1749377482177,0.26905414,647.05,646.58,1.54008102]
[1749377482681,0.26905414,647.05,646.59,1.54008102]
[1749377483380,0.26905414,647.05,646.61,1.54008102]
[1749377485677,0.26905414,647.05,646.6,1.54008102]
[1749377486181,0.26905414,647.05,646.61,1.54008102]
[1749377486681,0.26905414,647.05,646.6,1.54008102]
[1749377487576,0.26905414,647.05,646.63,1.54008102]
[1749377489479,0.26905414,647.05,646.62,1.54008102]
[1749377491285,0.26905414,647.05,646.63,1.54008102]
[1749377491882,0.26905414,647.05,646.62,1.54008102]
[1749377492183,0.26905414,647.05,646.66,1.54008102]
[1749377492386,0.26905414,647.05,646.68,1.54008102]
[1749377494087,0.26905414,647.05,646.69,1.54008102]
[1749377494291,0.26905414,647.05,646.68,1.54008102]
[1749377494883,0.26905414,647.05,646.29,1.54008102]
[1749377495086,0.26905414,647.05,646.31,1.54008102]
[1749377495689,0.26905414,647.05,646.3,1.54008102]
[1749377499888,0.26905414,647.05,646.35,1.54008102]
[1749377500089,0.26905414,647.05,646.39,1.54008102]
[1749377500288,0.26905414,647.05,646.37,1.54008102]
[1749377500889,0.26905414,647.05,646.39,1.54008102]
[1749377501088,0.26905414,647.05,646.38,1.54008102]
[1749377503289,0.26905414,647.05,646.39,1.54008102]
[1749377506393,0.26905414,647.05,646.4,1.54008102]
[1749377507390,0.26905414,647.05,646.39,1.54008102]
[1749377507794,0.26905414,647.05,646.47,1.54008102]
[1749377507994,0.26905414,647.05,646.5,1.54008102]
[1749377508195,0.26905414,647.05,646.51,1.54008102]
[1749377508697,0.26905414,647.05,646.52,1.54008102]
[1749377510091,0.26905414,647.05,646.61,1.54008102]
[1749377510295,0.26905414,647.05,646.45,2.31012154]
[1749377510296,0.26905414,647.05,646.62,1.54008102]
[1749377510993,0.26905414,647.05,646.47,1.54008102]
[1749377511194,0.26905414,647.05,646.42,1.54008102]
[1749377511892,0.26905414,647.05,644.89,5.32102317]
[1749377511893,0.26905414,647.05,646.4,1.54008102]
[1749377512093,0.26905414,647.05,646.44,1.54008102]
[1749377512796,0.26905414,647.05,646.45,1.54008102]
[1749377513397,0.26905414,647.05,646.51,1.54008102]
[1749377514198,0.26905414,647.05,646.54,1.54008102]
[1749377514399,0.26905414,647.05,646.55,1.54008102]
[1749377514901,0.26905414,647.05,646.54,1.54008102]
[1749377515201,0.26905414,647.05,646.55,1.54008102]
[1749377516299,0.26905414,647.05,646.57,1.54008102]
[1749377518202,0.26905414,647.05,646.58,1.54008102]
[1749377519303,0.26905414,647.05,646.6,1.54008102]
[1749377520908,0.26905414,647.05,645.87,0.26906038]
[1749377520909,0.26905414,647.05,646.64,1.54008102]
[1749377521703,0.26905414,647.05,646.71,1.54008102]
[1749377522009,0.26905414,647.05,646.72,1.54008102]
[1749377523107,0.26905414,647.05,646.69,1.54008102]
[1749377523914,0.26905414,647.05,646.7,1.54008102]
[1749377524407,0.26905414,647.05,646.69,1.54008102]
[1749377525411,0.26905414,647.05,646.7,1.54008102]
[1749377526310,0.26905414,647.05,646.72,1.54008102]
[1749377526913,0.26905414,647.05,646.71,1.54008102]
[1749377527915,0.26905414,647.05,646.72,1.54008102]
[1749377528514,0.26905414,647.05,646.71,1.54008102]
[1749377529114,0.26905414,647.05,646.72,1.54008102]
[1749377529712,0.26905414,647.05,646.71,1.54008102]
[1749377532921,0.26905414,647.05,646.76,1.54008102]
[1749377534120,0.26905414,647.05,646.75,1.54008102]
[1749377535020,0.26905414,647.05,646.76,1.54008102]
[1749377536524,0.26905414,647.05,646.83,1.54008102]
[1749377537422,0.26905414,647.05,646.82,1.54008102]
[1749377540126,0.26905414,647.05,646.81,1.54008102]
[1749377541132,0.26905414,647.05,646.79,1.54008102]
[1749377541331,0.26905414,647.05,646.78,1.54008102]
[1749377541630,0.26905414,647.05,646.77,1.54008102]
[1749377542030,0.26905414,647.05,646.78,1.54008102]
[1749377542228,0.26905414,647.05,646.75,1.54008102]
[1749377542731,0.30902826,647.19,646.75,1.54008102]
[1749377542931,0.26899278,646.98,646.75,1.54008102]
[1749377543129,0.30902826,647.19,646.75,1.54008102]
[1749377543627,0.26899278,646.93,646.74,1.54008102]
[1749377543937,0.30902826,647.19,646.74,1.54008102]
[1749377544132,0.2689616,647.09,646.74,1.54008102]
[1749377545833,0.2689616,647.09,646.58,2.31012154]
[1749377545834,0.2689616,647.09,646.73,1.54008102]
[1749377546031,0.2689616,647.09,646.74,1.54008102]
[1749377546535,0.2689616,647.09,646.75,1.54008102]
[1749377547030,0.2689616,647.09,646.76,1.54008102]
[1749377547529,0.2689616,647.09,646.6,2.31012154]
[1749377547530,0.2689616,647.09,646.75,1.54008102]
[1749377548835,0.2689616,647.09,646.74,1.54008102]
[1749377551138,0.2689616,647.09,646.77,1.54008102]
[1749377552236,0.2689616,647.09,646.8,1.54008102]
[1749377552439,0.2689616,647.09,646.79,1.54008102]
[1749377555140,0.2689616,647.09,646.78,1.54008102]
[1749377555940,0.2689616,647.09,646.79,1.54008102]
[1749377556239,0.2689616,647.09,646.78,1.54008102]
[1749377556543,0.2689616,647.09,646.76,1.54008102]
[1749377557642,0.2689616,647.09,646.75,1.54008102]
[1749377558241,0.2689616,647.09,646.74,1.54008102]
[1749377559144,0.2689616,647.09,646.72,1.54008102]
[1749377559641,0.2689616,647.09,646.71,1.54008102]
[1749377560244,0.2689616,647.09,646.72,1.54008102]
[1749377560743,0.2689616,647.09,646.71,1.54008102]
[1749377561640,0.2689616,647.09,646.72,1.54008102]
[1749377561839,0.2689616,647.09,646.71,1.54008102]
[1749377562045,0.2689616,647.09,646.7,1.54008102]
[1749377563242,0.2689616,647.09,646.69,1.54008102]
[1749377564142,0.2689616,647.09,646.67,1.54008102]
[1749377564441,0.2689616,647.09,646.64,1.54008102]
[1749377565746,0.2689616,647.09,646.62,1.54008102]
[1749377566142,0.2689616,647.09,646.61,1.54008102]
[1749377566347,0.2689616,647.09,646.59,1.54008102]
[1749377566543,0.2689616,647.09,646.58,1.54008102]
[1749377566749,0.2689616,647.09,646.57,1.54008102]
[1749377567947,0.2689616,647.09,646.56,1.54008102]
[1749377568947,0.2689616,647.09,645.87,0.26906038]
[1749377569142,0.2689616,647.09,645.88,0.30965504]
[1749377571045,0.2689616,647.09,646.58,1.53941792]
[1749377572346,0.2689616,647.09,646.56,1.53941792]
[1749377576352,0.2689616,647.09,646.59,1.53941792]
[1749377576552,0.2689616,647.09,646.61,1.53941792]
[1749377579251,0.2689616,647.09,646.6,1.53941792]
[1749377580851,0.2689616,647.09,646.61,1.53941792]
[1749377581555,0.2689616,647.09,646.6,1.53941792]
[1749377581856,0.2689616,647.09,646.61,1.53941792]
[1749377582151,0.2689616,647.09,646.63,1.53941792]
[1749377587259,0.2689616,647.09,646.58,1.53941792]
[1749377588056,0.2689616,647.09,646.55,1.53941792]
[1749377589560,0.2689616,647.09,645.93,3.84854481]
[1749377589757,0.2689616,647.09,645.88,0.30965504]
[1749377590561,0.2689616,647.09,646.55,1.53862877]
[1749377592363,0.2689616,647.09,646.56,1.53862877]
[1749377592763,0.2689616,647.09,646.55,1.53862877]
[1749377593561,0.2689616,647.09,646.56,1.53862877]
[1749377594461,0.2689616,647.09,646.55,1.53862877]
[1749377595263,0.2689616,647.09,646.56,1.53862877]
[1749377595960,0.2689616,647.09,646.55,1.53862877]
[1749377596164,0.2689616,647.09,646.42,1.53862877]
[1749377596466,0.2689616,647.09,646.41,1.53862877]
[1749377597161,0.2689616,647.09,646.42,1.53862877]
[1749377597665,0.2689616,647.09,646.24,2.30794316]
[1749377597666,0.2689616,647.09,646.41,1.53862877]
[1749377601770,0.2689616,647.09,646.35,1.53862877]
[1749377605372,0.2689616,647.09,646.34,1.53862877]
[1749377606070,0.2689616,647.09,646.37,1.53862877]
[1749377606271,0.2689616,647.09,646.38,1.53862877]
[1749377609471,0.2689616,647.09,646.39,1.53862877]
[1749377611470,0.2689616,647.09,646.43,1.53862877]
[1749377611675,0.2689616,647.09,646.46,1.53862877]
[1749377612076,0.2689616,647.09,646.47,1.53862877]
[1749377612272,0.2689616,647.09,646.48,1.53862877]
[1749377614580,0.2689616,647.09,646.49,1.53862877]
[1749377615378,0.2689616,647.09,646.55,1.53862877]
[1749377616080,0.2689616,647.09,646.56,1.53862877]
[1749377617383,0.2689616,647.09,646.57,1.53862877]
[1749377618384,0.2689616,647.09,646.49,1.53862877]
[1749377618879,0.2689616,647.09,646.51,1.53862877]
[1749377619682,0.2689616,647.09,646.52,1.53862877]
[1749377620481,0.2689616,647.09,646.53,1.53862877]
[1749377621383,0.2689616,647.09,646.54,1.53862877]
[1749377622384,0.2689616,647.09,646.52,1.53862877]
[1749377623584,0.2689616,647.09,646.53,1.53862877]
[1749377624590,0.2689616,647.09,646.54,1.53862877]
[1749377625586,0.2689616,647.09,646.55,1.53862877]
[1749377625989,0.2689616,647.09,645.88,0.30965504]
[1749377625990,0.2689616,647.09,646.45,1.53862877]
[1749377626289,0.2689616,647.09,646.4,1.53862877]
[1749377631591,0.2689616,647.09,646.41,1.53862877]
[1749377633294,0.2689616,647.09,646.4,1.53862877]
[1749377635296,0.2689616,647.09,646.39,1.53862877]
[1749377635694,0.2689616,647.09,646.4,1.53862877]
[1749377635898,0.2689616,647.09,646.5,1.53862877]
[1749377636699,0.2689616,647.09,646.49,1.53862877]
[1749377637000,0.2689616,647.09,646.5,1.53862877]
[1749377639801,0.2689616,647.09,646.52,1.53862877]
[1749377639999,0.2689616,647.09,646.53,1.53862877]
[1749377641199,0.2689616,647.09,646.54,1.53862877]
[1749377642103,0.2689616,647.09,646.58,1.53862877]
[1749377643001,0.2689616,647.09,646.59,1.53862877]
[1749377643805,0.2689616,647.09,645.94,3.84657193]
[1749377643806,0.2689616,647.09,646.6,1.53862877]
[1749377644702,0.2689616,647.09,646.62,1.53862877]
[1749377646604,0.2689616,647.09,646.63,1.53862877]
[1749377649806,0.2689616,647.09,646.61,1.53862877]
[1749377650506,0.2689616,647.09,646.62,1.53862877]
[1749377651912,0.2689616,647.09,646.63,1.53862877]
[1749377652708,0.2689616,647.09,646.62,1.53862877]
[1749377653519,0.2689616,647.09,646.64,1.53862877]
[1749377654310,0.2689616,647.09,646.63,1.53862877]
[1749377654514,0.2689616,647.09,646.64,1.53862877]
[1749377657016,1.93246969,647.09,646.64,1.53862877]
[1749377657214,0.2689616,647.09,646.64,1.53862877]
[1749377660715,0.2689616,647.09,646.66,1.53862877]
[1749377660917,0.2689616,647.09,646.68,1.53862877]
[1749377661420,0.2689616,647.09,646.67,1.53862877]
[1749377661718,0.2689616,647.09,646.68,1.53862877]
[1749377662217,0.2689616,647.09,646.62,1.53862877]
[1749377670724,0.2689616,647.09,646.63,1.53862877]
[1749377672226,0.2689616,647.09,646.68,1.53862877]
[1749377672424,0.2689616,647.09,646.69,1.53862877]
[1749377673223,0.2689616,647.09,646.68,1.53862877]
[1749377673622,0.2689616,647.09,646.69,1.53862877]
[1749377680420,0.2689616,647.09,646.7,1.53862877]
[1749377681429,0.2689616,647.09,646.69,1.53862877]
[1749377682127,0.2689616,647.09,646.64,1.53862877]
[1749377683024,0.2689616,647.09,646.51,2.30794316]
[1749377683427,0.2689616,647.09,646.62,1.54431548]
[1749377684427,0.2689616,647.09,646.56,1.54431548]
[1749377686532,0.2689616,647.09,646.53,1.54431548]
[1749377687929,0.2689616,647.09,646.52,1.54431548]
[1749377688131,0.2689616,647.09,646.53,1.54431548]
[1749377691731,0.2689616,647.09,646.54,1.54431548]
[1749377692432,0.2689616,647.09,646.52,1.54431548]
[1749377692934,3.15062551,647.09,646.52,1.54431548]
[1749377693132,2.88166391,647.08,646.52,1.54431548]
[1749377693332,0.55417704,647.07,646.52,1.54431548]
[1749377693535,0.2689616,647.09,646.55,1.54431548]
[1749377694536,0.2689616,647.09,646.56,1.54431548]
[1749377694736,0.2689616,647.09,646.57,1.54431548]
[1749377697537,0.2689616,647.09,646.56,1.54431548]
[1749377698238,0.2689616,647.09,646.57,1.54431548]
[1749377699034,0.2689616,647.09,646.56,1.54431548]
[1749377699333,0.2689616,647.09,646.58,1.54431548]
[1749377701633,1.15535935,647.17,646.58,1.54431548]
[1749377702033,0.26906246,647.03,646.61,1.54431548]
[1749377702734,0.26906246,647.03,646.62,1.54431548]
[1749377704741,0.26906246,647.03,646.61,1.54431548]
[1749377705240,0.26906246,647.03,646.6,1.54431548]
[1749377706841,0.26906246,647.03,646.63,1.54431548]
[1749377707243,0.26906246,647.03,646.65,1.54431548]
[1749377707442,0.26906246,647.03,646.66,1.54431548]
[1749377709040,0.26906246,647.03,646.68,1.54431548]
[1749377711243,0.26906246,647.03,646.67,1.54431548]
[1749377712545,0.26906246,647.03,646.66,1.54431548]
[1749377714741,0.26906246,647.03,646.67,1.54431548]
[1749377714946,0.26906246,647.03,646.06,3.84657193]
[1749377714947,0.26906246,647.03,646.68,1.54431548]
[1749377716646,0.26906246,647.03,646.7,1.54431548]
[1749377719944,0.26906246,647.03,646.68,1.54431548]
[1749377721046,0.26906246,647.03,646.69,1.54431548]
[1749377722141,0.26906246,647.03,646.63,1.54431548]
[1749377722546,0.26906246,647.03,646.62,1.54431548]
[1749377722945,0.26906246,647.03,646.61,1.54431548]
[1749377723448,0.26906246,647.03,646.59,1.54431548]
[1749377726048,0.26906246,647.03,646.6,1.54431548]
[1749377727050,0.26906246,647.03,646.59,1.54431548]
[1749377727252,0.26906246,647.03,646.6,1.54431548]
[1749377727549,0.26906246,647.03,646.59,1.54431548]
[1749377729953,0.26906246,647.03,646.6,1.54431548]
[1749377730248,0.26906246,647.03,646.59,1.54431548]
[1749377730853,0.26906246,647.03,646.63,1.54431548]
[1749377731049,0.26906246,647.03,646.65,1.54431548]
[1749377731254,0.26906246,647.03,646.67,1.54431548]
[1749377732550,0.26906246,647.03,646.68,1.54431548]
[1749377732754,0.26906246,647.03,646.7,1.54431548]
[1749377733249,0.26906246,647.03,646.71,1.54431548]
[1749377733449,0.26906246,647.03,646.72,1.54431548]
[1749377733650,0.26906246,647.03,646.71,1.54431548]
[1749377734556,0.26906246,647.03,646.7,1.54431548]
[1749377735350,0.26906246,647.03,646.72,1.54431548]
[1749377735550,0.26906246,647.03,646.71,1.54431548]
[1749377735751,0.26906246,647.03,646.72,1.54431548]
[1749377736756,0.26906246,647.03,646.71,1.54431548]
[1749377737358,0.26906246,647.03,646.73,1.54431548]
[1749377737957,0.26906246,647.03,646.72,1.54431548]
[1749377738357,0.26906246,647.03,646.74,1.54431548]
[1749377739655,0.26906246,647.03,646.73,1.54431548]
[1749377740661,0.26906246,647.03,646.74,1.54431548]
[1749377741055,0.26906246,647.03,646.73,1.54431548]
[1749377742457,0.26906246,647.03,646.74,1.54431548]
[1749377743756,0.26906246,647.03,646.73,1.54431548]
[1749377745361,0.26906246,647.03,646.76,1.54431548]
[1749377746967,0.26906246,647.03,646.75,1.54431548]
[1749377747163,0.26906246,647.03,646.76,1.54431548]
[1749377747565,0.26906246,647.03,646.75,1.54431548]
[1749377748466,0.26906246,647.03,646.76,1.54431548]
[1749377748667,0.26906246,647.03,646.75,1.54431548]
[1749377748866,0.26906246,647.03,646.76,1.54431548]
[1749377750268,0.26906246,647.03,646.75,1.54431548]
[1749377751270,0.26906246,647.03,646.76,1.54431548]
[1749377751473,0.26906246,647.03,646.75,1.54431548]
[1749377752269,0.26906246,647.03,646.69,1.54431548]
[1749377758078,0.26906246,647.03,646.67,1.54431548]
[1749377760280,0.26906246,647.03,645.88,0.5787175]
[1749377760281,0.26906246,647.03,646.68,1.54431548]
[1749377762382,0.26906246,647.03,646.71,1.54431548]
[1749377762682,0.26906246,647.03,646.72,1.54431548]
[1749377763678,0.26906246,647.03,646.71,1.54431548]
[1749377764783,0.26906246,647.03,646.72,1.54431548]
[1749377766481,0.26906246,647.03,646.7,1.54431548]
[1749377767785,0.26906246,647.03,646.73,1.54431548]
[1749377769683,0.26906246,647.03,646.72,1.54431548]
[1749377770783,0.26906246,647.03,646.73,1.54431548]
[1749377772691,0.26906246,647.03,646.72,1.54431548]
[1749377772889,0.26906246,647.03,645.88,0.5787175]
[1749377772890,0.26906246,647.03,646.71,1.54431548]
[1749377773691,0.26906246,647.03,646.57,2.30794316]
[1749377773692,0.26906246,647.03,646.75,1.54431548]
[1749377774791,0.26906246,647.03,646.76,1.54431548]
[1749377775188,0.26906246,647.03,646.75,1.54431548]
[1749377776394,0.26906246,647.03,646.77,1.54431548]
[1749377776690,0.26906246,647.03,646.72,1.54431548]
[1749377776890,0.26906246,647.03,646.74,1.54431548]
[1749377777189,0.26906246,647.03,646.75,1.54431548]
[1749377777590,0.30902826,647.19,646.76,1.54431548]
[1749377777989,0.30902826,647.19,646.75,1.54431548]
[1749377781193,0.26895536,647.09,646.75,1.54431548]
[1749377781997,0.26895536,647.09,646.76,1.54431548]
[1749377782297,0.26895536,647.09,646.75,1.54431548]
[1749377782494,0.26895536,647.09,646.76,1.54431548]
[1749377782698,0.26895536,647.09,646.77,1.54431548]
[1749377783397,0.26895536,647.09,646.76,1.54431548]
[1749377783693,0.26895536,647.09,646.77,1.54431548]
[1749377784496,0.26895536,647.09,646.76,1.54431548]
[1749377784694,0.26895536,647.09,646.77,1.54431548]
[1749377786293,0.26895536,647.09,646.76,1.54431548]
[1749377786795,0.26895536,647.09,646.81,1.54431548]
[1749377787597,0.26895536,647.09,646.79,1.54431548]
[1749377788403,0.26895536,647.09,646.78,1.54431548]
[1749377788705,0.26895536,647.09,646.75,1.54431548]
[1749377789503,0.26895536,647.09,646.74,1.54431548]
[1749377790400,0.26895536,647.09,646.73,1.54431548]
[1749377790804,0.26895536,647.09,646.74,1.54431548]
[1749377792202,0.26895536,647.09,646.76,1.54431548]
[1749377795503,0.26895536,647.09,646.74,1.54431548]
[1749377796203,0.26895536,647.09,646.75,1.54431548]
[1749377796502,0.26895536,647.09,646.74,1.54431548]
[1749377796807,0.26895536,647.09,646.73,1.54431548]